bitfinex/quotes_SOLUSD_20251130
["timestamp","ask_amount","ask_price","bid_price","bid_amount"]
[1764490345060,0.66,136.65,136.62,70.7395493]
[1764490345265,7.97747741,136.66,136.63,0.65]
[1764490345439,0.66,136.66,136.63,7.96888839]
[1764490350059,7.97751052,136.66,136.63,0.65]
[1764490350937,7.97751052,136.66,136.63,63.35]
[1764490351643,7.97751052,136.66,136.63,70.66898586]
[1764490352038,7.31699782,136.67,136.64,0.67]
[1764490352246,7.31699782,136.67,136.64,63.37]
[1764490352563,3.88,136.68,136.65,0.67]
[1764490352564,24.68107664,136.68,136.65,0.67]
[1764490352862,10.53602877,136.69,136.65,2.73965704]
[1764490353240,10.53602877,136.69,136.66,0.67]
[1764490354040,33.18559812,136.7,136.66,63.37]
[1764490354262,0.66,136.69,136.66,62.7]
[1764490354445,2.72965704,136.69,136.66,62.7]
[1764490354853,0.66,136.68,136.66,62.7]
[1764490355241,2.72965704,136.68,136.66,62.7]
[1764490355454,10.04645654,136.68,136.66,62.7]
[1764490355749,0.66,136.67,136.66,62.7]
[1764490355939,0.66,136.67,136.64,63.37]
[1764490358467,7.97689546,136.67,136.64,63.37]
[1764490358968,7.31689546,136.67,136.64,63.37]
[1764490359769,7.97689546,136.67,136.64,63.37]
[1764490361248,7.97689546,136.67,136.64,70.68847864]
[1764490363881,7.31635937,136.68,136.64,70.01847864]
[1764490364052,7.97635937,136.68,136.65,0.67]
[1764490365285,0.66,136.67,136.64,70.68847864]
[1764490365578,7.97635937,136.68,136.65,0.67]
[1764490368666,0.66,136.68,136.65,7.9877711]
[1764490368854,3.22,136.68,136.65,11.2299371]
[1764490369055,3.22,136.68,136.66,0.67]
[1764490370358,7.31605381,136.69,136.66,0.67]
[1764490370359,7.97535945,136.7,136.66,7.98739895]
[1764490370670,11.19535945,136.7,136.66,70.68739895]
[1764490370852,11.19535945,136.7,136.67,0.67]
[1764490371061,3.902166,136.69,136.66,62.7]
[1764490371668,3.902166,136.69,136.66,63.37]
[1764490371994,10.5584261,136.69,136.66,62.7]
[1764490372287,11.2184261,136.69,136.66,63.37]
[1764490374784,10.53549598,136.7,136.66,7.31732576]
[1764490374990,10.53549598,136.7,136.67,0.67]
[1764490375663,11.19549598,136.7,136.67,0.67]
[1764490382287,11.19549598,136.7,136.66,70.01732576]
[1764490382288,7.97582416,136.69,136.66,70.67732576]
[1764490383091,7.97582416,136.69,136.67,0.66]
[1764490383494,0.66,136.68,136.66,70.01732576]
[1764490383680,11.19640869,136.68,136.66,62.7]
[1764490384708,10.53640869,136.68,136.66,63.36]
[1764490386489,7.31640869,136.68,136.66,63.36]
[1764490386821,7.31640869,136.68,136.66,0.66]
[1764490386988,7.31640869,136.68,136.67,0.66]
[1764490387824,7.31640869,136.68,136.65,70.01772652]
[1764490388025,7.31640869,136.68,136.66,0.66]
[1764490393017,0.66,136.69,136.66,7.97733767]
[1764490393205,3.22,136.69,136.66,7.97733767]
[1764490393512,7.97495631,136.71,136.67,0.66]
[1764490393716,23.62330069,136.72,136.67,0.66]
[1764490393920,26.86546669,136.72,136.67,3.902166]
[1764490394097,7.31443669,136.72,136.68,0.66]
[1764490394302,10.53443669,136.72,136.68,0.66]
[1764490394505,10.53443669,136.72,136.68,63.36]
[1764490394731,10.53443669,136.72,136.69,0.66]
[1764490394920,7.3138523,136.73,136.69,7.97579632]
[1764490395225,3.22,136.74,136.69,10.55796232]
[1764490395398,3.88,136.74,136.7,0.66]
[1764490396219,11.19338091,136.74,136.7,0.66]
[1764490396611,11.19338091,136.74,136.7,3.902166]
[1764490396810,11.19338091,136.74,136.71,0.66]
[1764490397247,10.53338091,136.74,136.71,0.66]
[1764490402938,10.53338091,136.74,136.68,84.2102124]
[1764490403243,0.66,136.73,136.7,0.66]
[1764490403707,14.43554691,136.74,136.7,0.66]
[1764490404196,3.242166,136.72,136.68,70.67616282]
[1764490404501,3.22,136.71,136.67,7.97667969]
[1764490404700,3.88,136.71,136.67,7.97667969]
[1764490405200,3.88,136.71,136.68,0.66]
[1764490406396,11.19526287,136.71,136.68,0.66]
[1764490408430,14.43742887,136.71,136.68,0.66]
[1764490410818,11.19526287,136.71,136.68,0.66]
[1764490414634,10.53526287,136.71,136.68,0.66]
[1764490421126,11.19526287,136.71,136.68,0.66]
[1764490422243,10.53526287,136.71,136.68,0.66]
[1764490422742,10.53526287,136.71,136.68,3.902166]
[1764490422915,7.31526287,136.71,136.69,0.72]
[1764490427642,10.53432357,136.72,136.69,0.72]
[1764490427846,10.53432357,136.72,136.69,2.79356303]
[1764490428253,10.53432357,136.72,136.7,0.72]
[1764490428953,7.31375924,136.73,136.7,0.72]
[1764490429155,10.53375924,136.73,136.7,0.72]
[1764490433356,10.53375924,136.73,136.7,8.03528523]
[1764490433727,7.31375924,136.73,136.71,0.72]
[1764490445754,21.98204799,136.74,136.71,63.42]
[1764490445935,2.07356303,136.76,136.71,65.49356303]
[1764490446137,27.27239009,136.76,136.72,0.66]
[1764490446336,7.3128487,136.75,136.72,0.66]
[1764490446533,7.31165435,136.77,136.74,2.07356303]
[1764490446738,7.31165435,136.77,136.73,3.22]
[1764490446739,10.04521738,136.77,136.73,3.22]
[1764490446938,10.04521738,136.77,136.73,3.88]
[1764490447158,10.04521738,136.77,136.74,0.66]
[1764490447353,7.97165435,136.77,136.74,0.66]
[1764490448544,11.19165435,136.77,136.74,0.66]
[1764490449061,10.53165435,136.77,136.74,0.66]
[1764490450870,10.53165435,136.77,136.74,7.97313593]
[1764490451074,10.53165435,136.77,136.75,0.66]
[1764490451665,3.22,136.77,136.75,0.66]
[1764490451859,3.22,136.77,136.75,7.97257283]
[1764490452164,3.22,136.77,136.75,10.04613586]
[1764490452353,3.22,136.77,136.76,0.66]
[1764490452668,7.31066556,136.79,136.76,0.66]
[1764490452871,10.53066556,136.79,136.76,0.66]
[1764490453076,3.22,136.79,136.76,0.66]
[1764490455377,10.53063092,136.79,136.76,0.66]
[1764490463982,10.53063092,136.79,136.76,63.36]
[1764490464288,10.53063092,136.79,136.77,0.68]
[1764490471769,3.22,136.79,136.77,0.68]
[1764490472488,9.48373761,136.8,136.78,2.07356303]
[1764490472489,0.1,136.8,136.78,2.07356303]
[1764490472694,0.1,136.8,136.79,0.69]
[1764490480690,2.83356303,136.8,136.77,73.92139424]
[1764490481002,2.83356303,136.8,136.77,63.39]
[1764490481997,7.31047591,136.79,136.77,63.39]
[1764490484706,7.31047591,136.79,136.77,0.69]
[1764490486983,7.40994152,136.8,136.77,0.69]
[1764490491410,7.40994152,136.8,136.77,8.00146147]
[1764490491611,7.40994152,136.8,136.78,0.69]
[1764490491813,0.1,136.8,136.78,0.69]
[1764490494839,3.98,136.8,136.77,7.31148774]
[1764490495016,3.98,136.8,136.77,8.00148774]
[1764490495413,3.32,136.8,136.77,7.31148774]
[1764490495617,3.32,136.8,136.78,0.68]
[1764490500413,11.28040472,136.8,136.77,63.38]
[1764490500617,14.51678429,136.8,136.77,63.38]
[1764490502518,14.51678429,136.8,136.77,0.68]
[1764490503120,3.88637957,136.79,136.75,70.69243787]
[1764490503296,3.22,136.78,136.76,0.68]
[1764490504199,7.10637957,136.78,136.75,62.7]
[1764490504407,7.10637957,136.78,136.75,63.38]
[1764490505321,14.41773599,136.78,136.75,63.38]
[1764490505830,3.88637957,136.77,136.73,0.68]
[1764490505998,3.22,136.76,136.74,0.68]
[1764490508432,10.53208868,136.76,136.74,0.68]
[1764490508928,11.18208868,136.76,136.74,0.68]
[1764490509225,11.18208868,136.76,136.73,0.68]
[1764490509929,10.53208868,136.76,136.73,0.68]
[1764490510721,3.23637957,136.74,136.7,16.308864]
[1764490510893,3.22,136.73,136.69,0.68]
[1764490511096,3.23637957,136.72,136.69,0.68]
[1764490511297,7.10637957,136.73,136.69,0.68]
[1764490511609,3.23637957,136.72,136.69,0.68]
[1764490512010,6.47275914,136.72,136.69,0.68]
[1764490512921,10.55113342,136.71,136.69,0.68]
[1764490514626,7.31475385,136.71,136.69,0.68]
[1764490520030,10.53475385,136.71,136.69,0.68]
[1764490526518,13.77113342,136.71,136.67,62.8]
[1764490526718,33.18163501,136.71,136.68,0.65]
[1764490527041,54.04489922,136.71,136.68,0.65]
[1764490527413,50.80851965,136.71,136.68,0.65]
[1764490529016,10.53475385,136.71,136.68,3.88637957]
[1764490529320,10.53475385,136.71,136.68,66.68637957]
[1764490529639,10.53475385,136.71,136.69,0.65]
[1764490534436,0.1,136.84,136.7,3.23637957]
[1764490534437,7.05851617,136.77,136.7,3.23637957]
[1764490534633,7.31154492,136.77,136.73,3.23637957]
[1764490534840,11.20792449,136.77,136.72,3.22]
[1764490535026,3.23637957,136.76,136.72,3.22]
[1764490535224,3.23637957,136.76,136.73,0.65]
[1764490535543,3.89637957,136.76,136.72,3.22]
[1764490535746,7.97261425,136.75,136.72,3.87]
[1764490536046,7.31261425,136.75,136.72,3.22]
[1764490536244,7.31261425,136.75,136.73,0.65]
[1764490536444,7.312286,136.76,136.73,0.65]
[1764490538531,10.54866557,136.76,136.73,0.65]
[1764490538934,7.312286,136.76,136.73,0.65]
[1764490539235,22.17530272,136.77,136.73,0.65]
[1764490540335,7.312286,136.76,136.73,0.65]
[1764490540536,6.54065825,136.76,136.73,0.65]
[1764490542039,9.76065825,136.76,136.73,0.65]
[1764490542344,6.54065825,136.76,136.73,0.65]
[1764490542558,9.76065825,136.76,136.73,0.65]
[1764490543628,6.54065825,136.76,136.73,0.65]
[1764490544028,9.76065825,136.76,136.73,63.45]
[1764490544236,9.76065825,136.76,136.74,0.65]
[1764490552448,6.54065825,136.76,136.74,0.65]
[1764490552656,9.76065825,136.76,136.74,0.65]
[1764490555167,11.83300153,136.76,136.74,0.65]
[1764490561270,9.76065825,136.76,136.74,0.65]
[1764490562547,3.22,136.76,136.74,0.65]
[1764490563772,10.53243854,136.76,136.74,0.65]
[1764490573772,13.26478182,136.76,136.73,63.52]
[1764490574158,13.26478182,136.76,136.73,62.8]
[1764490574159,30.8849807,136.76,136.73,62.8]
[1764490574365,0.66,136.75,136.73,62.8]
[1764490574570,5.29234328,136.74,136.7,0.72]
[1764490574765,2.07234328,136.73,136.71,0.72]
[1764490575177,5.29234328,136.74,136.71,0.72]
[1764490576082,12.60590957,136.74,136.71,0.72]
[1764490578275,10.53356629,136.74,136.71,0.72]
[1764490579260,0.66,136.77,136.71,10.10702]
[1764490579454,3.22,136.76,136.71,72.90702]
[1764490579671,3.22,136.76,136.72,0.72]
[1764490580365,10.53214106,136.76,136.72,8.03391721]
[1764490580877,10.53214106,136.76,136.73,0.72]
[1764490582288,13.26448434,136.76,136.73,0.72]
[1764490582589,13.26448434,136.76,136.73,63.52]
[1764490583679,13.26448434,136.76,136.73,62.8]
[1764490583680,2.07234328,136.74,136.73,62.8]
[1764490583867,2.07234328,136.74,136.71,0.66]
[1764490584062,2.07234328,136.73,136.71,0.66]
[1764490584587,2.07234328,136.72,136.71,0.66]
[1764490585183,9.38636257,136.73,136.71,0.66]
[1764490590205,9.38636257,136.73,136.71,0.66]
[1764490592199,7.31314904,136.74,136.71,0.66]
[1764490592600,9.38549232,136.74,136.71,0.66]
[1764490594306,10.04549232,136.74,136.71,0.66]
[1764490595612,2.07234328,136.73,136.71,0.66]
[1764490595789,2.07234328,136.72,136.69,0.71]
[1764490595995,2.73234328,136.72,136.69,63.51]
[1764490596307,9.38709713,136.71,136.69,0.71]
[1764490597007,2.07234328,136.7,136.68,63.51]
[1764490597588,5.95234328,136.7,136.68,62.8]
[1764490597784,3.88,136.7,136.68,62.8]
[1764490597989,5.95234328,136.7,136.68,62.8]
[1764490598709,10.53540386,136.7,136.69,0.71]
[1764490602210,7.31540386,136.7,136.69,0.71]
[1764490609794,10.55638373,136.7,136.67,62.8]
[1764490610118,3.90097987,136.69,136.67,62.8]
[1764490610298,3.24097987,136.69,136.67,62.8]
[1764490610620,3.24097987,136.68,136.66,0.71]
[1764490612424,10.55754972,136.68,136.66,0.71]
[1764490614693,7.31656985,136.68,136.66,0.71]
[1764490616423,10.55754972,136.68,136.66,0.71]
[1764490617228,11.21754972,136.68,136.65,0.67]
[1764490618122,13.77803675,136.67,136.65,0.67]
[1764490618308,10.53705688,136.67,136.65,0.67]
[1764490621128,7.31705688,136.67,136.65,63.47]
[1764490621518,7.31705688,136.67,136.66,0.67]
[1764490621908,7.31528895,136.7,136.66,66.71097987]
[1764490622231,10.53528895,136.7,136.66,66.71097987]
[1764490622453,10.53528895,136.7,136.67,0.67]
[1764490623008,10.53528895,136.7,136.67,63.47]
[1764490623233,10.53528895,136.7,136.68,0.67]
[1764490625832,7.31476416,136.71,136.68,0.67]
[1764490627130,7.31476416,136.71,136.68,63.47]
[1764490627532,7.31476416,136.71,136.69,0.67]
[1764490627728,16.40845361,136.73,136.69,0.67]
[1764490627933,13.77516542,136.73,136.69,63.47]
[1764490628133,13.77516542,136.73,136.7,0.67]
[1764490631731,3.90097987,136.72,136.69,63.47]
[1764490632064,3.90097987,136.72,136.69,62.8]
[1764490632341,3.24097987,136.72,136.7,0.67]
[1764490632647,3.24097987,136.72,136.7,63.47]
[1764490632820,6.46097987,136.71,136.7,62.8]
[1764490633019,7.12097987,136.71,136.7,62.8]
[1764490636050,7.31528895,136.7,136.68,0.67]
[1764490636430,7.31528895,136.7,136.65,70.11774189]
[1764490636431,11.21626882,136.7,136.65,70.11774189]
[1764490636634,11.21626882,136.7,136.67,0.67]
[1764490637528,10.55626882,136.7,136.67,0.67]
[1764490638853,11.21626882,136.7,136.67,0.67]
[1764490640465,7.31528895,136.7,136.67,0.67]
[1764490648850,3.22,136.7,136.67,7.9867113]
[1764490649154,3.22,136.7,136.68,0.65]
[1764490656666,7.31498425,136.71,136.68,0.65]
[1764490657053,7.31498425,136.71,136.68,7.9663096]
[1764490657366,7.31498425,136.71,136.69,0.65]
[1764490660566,10.5553219,136.72,136.69,0.65]
[1764490660868,10.53434203,136.72,136.69,0.65]
[1764490665076,7.3136839,136.73,136.69,7.9657492]
[1764490665255,7.3136839,136.73,136.7,0.65]
[1764490667885,7.31314904,136.74,136.7,7.96523845]
[1764490668174,37.83210787,136.75,136.71,0.65]
[1764490668175,3.22,136.75,136.71,0.65]
[1764490668562,3.22,136.75,136.71,63.45]
[1764490668952,3.22,136.75,136.72,0.65]
[1764490669184,10.53285633,136.75,136.72,63.45]
[1764490669860,10.53285633,136.75,136.73,0.65]
[1764490672388,3.22,136.75,136.73,0.65]
[1764490675488,5.29281704,136.75,136.73,0.65]
[1764490675989,12.60551023,136.75,136.73,0.65]
[1764490681393,2.73281704,136.74,136.69,0.71]
[1764490681694,9.38707174,136.72,136.69,63.51]
[1764490681878,2.07281704,136.71,136.68,8.02604629]
[1764490682076,2.73281704,136.71,136.68,0.71]
[1764490683373,10.04762711,136.71,136.68,0.71]
[1764490683916,7.31481007,136.71,136.68,0.71]
[1764490688499,9.38762711,136.71,136.68,0.71]
[1764490688697,10.04762711,136.71,136.68,0.71]
[1764490689014,9.38762711,136.71,136.68,0.71]
[1764490689780,7.31481007,136.71,136.68,0.71]
[1764490692398,7.31481007,136.71,136.68,63.51]
[1764490692700,7.31481007,136.71,136.69,0.71]
[1764490694004,21.50423309,136.75,136.69,0.71]
[1764490694188,2.73281704,136.75,136.69,13.31825844]
[1764490694393,19.34151803,136.77,136.69,11.2454414]
[1764490694394,2.73281704,136.74,136.69,11.2454414]
[1764490694596,5.95281704,136.74,136.7,0.71]
[1764490694893,0.66,136.73,136.7,0.71]
[1764490695596,10.04700074,136.73,136.7,0.71]
[1764490696217,2.07281704,136.71,136.67,0.71]
[1764490696392,2.07281704,136.7,136.67,0.71]
[1764490696985,2.73281704,136.7,136.67,0.71]
[1764490697417,10.04841136,136.7,136.67,0.71]
[1764490698829,7.97559432,136.7,136.67,0.71]
[1764490699325,7.31559432,136.7,136.67,0.71]
[1764490700326,10.04841136,136.7,136.67,0.71]
[1764490700915,7.97559432,136.7,136.67,0.71]
[1764490701319,7.97559432,136.7,136.67,63.51]
[1764490703407,10.04841136,136.7,136.67,63.51]
[1764490703614,0.65,136.69,136.67,62.8]
[1764490703924,10.0387676,136.69,136.66,0.67]
[1764490704623,9.3887676,136.69,136.65,62.8]
[1764490704826,0.65,136.68,136.65,63.47]
[1764490705223,10.03929467,136.68,136.65,63.47]
[1764490707191,26.26353271,136.7,136.66,0.71]
[1764490707407,2.07281704,136.69,136.66,0.71]
[1764490707607,2.73281704,136.69,136.66,0.71]
[1764490709017,7.31635937,136.68,136.66,0.71]
[1764490710317,7.31635937,136.68,136.66,63.51]
[1764490710514,7.31603981,136.69,136.67,0.71]
[1764490712521,7.3154634,136.7,136.67,0.71]
[1764490712700,7.31468807,136.72,136.67,76.11967436]
[1764490713122,7.31468807,136.72,136.68,0.71]
[1764490714425,10.04750511,136.72,136.68,0.71]
[1764490715520,7.31528895,136.7,136.68,0.71]
[1764490719319,9.38810599,136.7,136.68,0.71]
[1764490721831,7.31528895,136.7,136.68,0.71]
[1764490724923,10.53498338,136.71,136.68,0.71]
[1764490726136,12.60780042,136.71,136.68,0.71]
[1764490727237,10.53498338,136.71,136.68,0.71]
[1764490728117,10.53498338,136.71,136.68,63.51]
[1764490728331,10.53498338,136.71,136.69,0.71]
[1764490728933,12.60780042,136.71,136.69,0.71]
[1764490731846,12.60780042,136.71,136.68,63.51]
[1764490731847,13.26780042,136.71,136.68,63.51]
[1764490732045,13.26780042,136.71,136.69,0.71]
[1764490732440,12.60780042,136.71,136.69,0.71]
[1764490732646,13.77599779,136.71,136.69,0.71]
[1764490732942,32.06288243,136.71,136.68,62.8]
[1764490733127,3.24101441,136.69,136.66,0.71]
[1764490733330,3.24101441,136.69,136.66,63.51]
[1764490733519,3.90101441,136.69,136.66,63.51]
[1764490733720,3.24101441,136.69,136.67,0.71]
[1764490734144,10.55726503,136.69,136.67,0.71]
[1764490735545,7.31625062,136.69,136.67,0.71]
[1764490735720,10.55726503,136.69,136.67,0.71]
[1764490737140,11.21726503,136.69,136.66,62.8]
[1764490737353,3.24101441,136.68,136.66,63.51]
[1764490738048,6.46101441,136.68,136.66,63.51]
[1764490738352,3.22,136.68,136.66,62.8]
[1764490738532,3.22,136.68,136.67,0.71]
[1764490740548,10.53579801,136.7,136.67,0.71]
[1764490742323,3.22,136.7,136.67,8.02668387]
[1764490742929,3.22,136.7,136.68,0.71]
[1764490746847,29.49980292,136.73,136.68,70.82594845]
[1764490747152,3.22,136.71,136.68,70.82594845]
[1764490747326,3.22,136.71,136.69,0.71]
[1764490750756,3.22,136.71,136.69,8.02572324]
[1764490750956,3.22,136.71,136.7,0.71]
[1764490751853,7.31389837,136.73,136.7,0.71]
[1764490752035,3.22,136.73,136.7,8.02519014]
[1764490752441,10.55378767,136.75,136.71,0.71]
[1764490752645,13.77378767,136.75,136.71,63.51]
[1764490752833,10.53277326,136.75,136.71,66.75101441]
[1764490753150,3.22,136.75,136.72,0.71]
[1764490753351,6.46101441,136.75,136.72,0.71]
[1764490763730,6.46101441,136.75,136.72,63.51]
[1764490764159,6.46101441,136.75,136.73,0.71]
[1764490765052,3.22,136.75,136.73,0.71]
[1764490765255,13.77363154,136.75,136.73,0.71]
[1764490766875,10.53261713,136.75,136.73,0.71]
[1764490767157,13.77363154,136.75,136.73,0.71]
[1764490768661,28.8326637,136.77,136.73,0.71]
[1764490768960,32.7126637,136.77,136.73,0.71]
[1764490769161,3.24101441,136.76,136.73,0.71]
[1764490769362,29.47164929,136.77,136.73,0.71]
[1764490769557,3.24101441,136.76,136.73,0.71]
[1764490769762,3.24101441,136.76,136.73,63.51]
[1764490769968,3.24101441,136.76,136.74,0.72]
[1764490770758,14.43306411,136.77,136.74,0.72]
[1764490771061,13.77306411,136.77,136.74,0.72]
[1764490773646,3.22,136.77,136.74,8.03307524]
[1764490774161,3.22,136.77,136.75,0.72]
[1764490775971,6.46101441,136.77,136.75,0.72]
[1764490779464,13.77259793,136.77,136.75,0.72]
[1764490780867,10.53158352,136.77,136.75,0.72]
[1764490781062,3.24101441,136.77,136.75,0.72]
[1764490783765,3.24101441,136.77,136.74,70.11307524]
[1764490784063,7.12101441,136.76,136.74,63.52]
[1764490784470,6.46101441,136.76,136.74,63.52]
[1764490786177,3.22,136.76,136.74,63.52]
[1764490786375,3.22,136.76,136.75,0.72]
[1764490786552,10.53202167,136.77,136.75,0.72]
[1764490787776,13.77303608,136.77,136.75,0.72]
[1764490791667,10.53202167,136.77,136.75,0.72]
[1764490797586,7.31202167,136.77,136.75,0.72]
[1764490797773,10.53202167,136.77,136.75,0.72]
[1764490798382,3.22,136.77,136.75,0.72]
[1764490800384,29.28625921,136.79,136.75,8.03236476]
[1764490800686,3.22,136.78,136.75,70.83236476]
[1764490800871,3.22,136.78,136.76,0.71]
[1764490801071,29.38252967,136.8,136.76,0.71]
[1764490801277,10.63014164,136.8,136.76,0.71]
[1764490801887,13.36235565,136.8,136.76,8.02183987]
[1764490802087,13.36235565,136.8,136.77,0.71]
[1764490803074,11.29014164,136.8,136.77,0.71]
[1764490803277,13.36235565,136.8,136.77,0.71]
[1764490805295,13.36235565,136.8,136.77,63.51]
[1764490805486,10.63014164,136.8,136.78,0.71]
[1764490806293,12.70235565,136.8,136.78,0.71]
[1764490806700,10.63014164,136.8,136.78,0.71]
[1764490806882,12.70235565,136.8,136.78,0.71]
[1764490808890,7.41014164,136.8,136.78,63.51]
[1764490809272,7.41014164,136.8,136.79,0.71]
[1764490810075,0.1,136.8,136.79,0.71]
[1764490812584,0.1,136.8,136.79,8.02047591]
[1764490814191,0.1,136.8,136.79,70.82047591]
[1764490814395,0.1,136.8,136.79,63.51]
[1764490815884,0.1,136.8,136.79,70.82047591]
[1764490819802,2.17221401,136.8,136.79,62.8]
[1764490820002,0.1,136.8,136.79,62.8]
[1764490820204,0.1,136.8,136.78,62.8]
[1764490820511,0.1,136.8,136.79,0.71]
[1764490821313,0.1,136.8,136.79,63.51]
[1764490821609,0.1,136.8,136.79,70.82047591]
[1764490834089,0.1,136.8,136.79,72.89268992]
[1764490834414,0.1,136.8,136.79,78.18490393]
[1764490834794,0.1,136.8,136.79,76.11268992]
[1764490840925,0.1,136.8,136.79,70.82047591]
[1764490841222,0.1,136.8,136.79,73.74905518]
[1764490841402,0.1,136.8,136.79,70.82047591]
[1764490841607,0.1,136.8,136.79,70.11047591]
[1764490843506,0.1,136.8,136.79,70.83047591]
[1764490844007,0.1,136.8,136.79,70.11047591]
[1764490845214,0.1,136.8,136.79,70.83047591]
[1764490849531,0.1,136.8,136.79,72.90268992]
[1764490849830,0.1,136.8,136.79,70.83047591]
[1764490860035,0.1,136.8,136.79,62.8]
[1764490860242,0.1,136.8,136.79,63.47]
[1764490861044,0.1,136.8,136.79,62.8]
[1764490861238,0.76,136.8,136.79,62.8]
[1764490861630,0.1,136.8,136.79,62.8]
[1764490863645,0.76,136.8,136.79,62.8]
[1764490863852,0.76,136.8,136.77,62.8]
[1764490864141,0.76,136.8,136.72,0.67]
[1764490864142,3.23522619,136.78,136.72,0.67]
[1764490864338,3.23522619,136.76,136.72,0.67]
[1764490864723,3.89522619,136.76,136.72,0.67]
[1764490865348,11.20749518,136.76,136.72,7.9840721]
[1764490865644,7.97226899,136.76,136.72,11.21929829]
[1764490865943,7.31168353,136.77,136.73,3.90522619]
[1764490866326,7.31168353,136.77,136.74,0.67]
[1764490868648,10.54690972,136.77,136.74,0.67]
[1764490868951,7.31168353,136.77,136.74,0.67]
[1764490870347,3.89522619,136.77,136.74,0.67]
[1764490871139,3.23522619,136.77,136.73,7.31352726]
[1764490871331,11.20713536,136.77,136.74,0.67]
[1764490872050,3.89522619,136.77,136.74,0.67]
[1764490873125,11.20677339,136.77,136.74,0.67]
[1764490873552,11.20677339,136.77,136.74,63.47]
[1764490877754,7.9715472,136.77,136.74,63.47]
[1764490877955,11.20677339,136.77,136.74,63.47]
[1764490878864,3.89522619,136.76,136.74,62.8]
[1764490879748,25.58853633,136.78,136.74,63.47]
[1764490880054,0.66,136.77,136.74,63.47]
[1764490880363,3.89522619,136.77,136.74,63.47]
[1764490880851,11.20716546,136.77,136.74,63.47]
[1764490881962,7.31193927,136.77,136.74,62.8]
[1764490882162,7.31122489,136.78,136.75,0.71]
[1764490882329,7.31122489,136.78,136.75,63.51]
[1764490882535,7.31122489,136.78,136.76,0.71]
[1764490886564,10.54645108,136.78,136.76,0.71]
[1764490886865,0.66,136.77,136.75,62.8]
[1764490887166,3.89522619,136.77,136.75,62.8]
[1764490887759,3.89522619,136.76,136.75,62.8]
[1764490887966,3.23522619,136.76,136.75,62.8]
[1764490888174,3.89522619,136.76,136.75,62.8]
[1764490888861,3.23522619,136.76,136.75,62.8]
[1764490889068,14.42708331,136.77,136.75,62.8]
[1764490890472,13.76708331,136.77,136.75,63.49]
[1764490891160,10.54638026,136.78,136.76,0.69]
[1764490891343,13.76638026,136.78,136.76,0.69]
[1764490891549,10.53115407,136.78,136.76,0.69]
[1764490891758,14.42638026,136.78,136.75,63.49]
[1764490895576,3.23522619,136.77,136.75,63.49]
[1764490895873,3.23522619,136.77,136.75,62.8]
[1764490896074,3.23522619,136.77,136.76,0.69]
[1764490896570,3.23522619,136.77,136.75,62.8]
[1764490896777,3.23522619,136.77,136.75,63.49]
[1764490897271,3.23522619,136.77,136.76,0.69]
[1764490897750,10.53115407,136.78,136.76,0.69]
[1764490897950,3.23522619,136.77,136.76,0.69]
[1764490899882,14.42638026,136.78,136.76,0.69]
[1764490900381,11.19115407,136.78,136.75,63.49]
[1764490900563,0.1,136.8,136.77,0.69]
[1764490900769,0.1,136.8,136.77,3.92522619]
[1764490901177,0.1,136.8,136.78,0.69]
[1764490901880,0.1,136.8,136.78,8.00077579]
[1764490902081,0.1,136.8,136.79,0.69]
[1764490909768,3.99522619,136.8,136.77,70.801322]